bitfinex-derivatives/quotes_SOLF0:USTF0_20250818
["timestamp","ask_amount","ask_price","bid_price","bid_amount"]
[1755531244216,4.02464155,181.28,181.21,3.90493011]
[1755531244410,4.02464155,181.27,181.21,3.90493011]
[1755531244618,54.0,181.3,181.21,3.90493011]
[1755531244914,4.02632916,181.29,181.18,3.90493011]
[1755531245117,4.02632916,181.28,181.18,3.90493011]
[1755531245318,4.02632916,181.27,181.18,3.90493011]
[1755531245521,54.0,181.3,181.18,3.90493011]
[1755531245814,4.028124,181.29,181.18,3.90493011]
[1755531246019,4.028124,181.28,181.18,3.90493011]
[1755531246212,4.028124,181.27,181.18,9.42143011]
[1755531246417,54.0,181.3,181.18,9.42143011]
[1755531246615,4.02896808,181.29,181.21,3.90493011]
[1755531246820,4.02896808,181.28,181.21,3.90493011]
[1755531247021,4.02925721,181.27,181.21,3.90493011]
[1755531247221,54.0,181.3,181.21,3.90493011]
[1755531247421,4.02975175,181.29,181.21,3.90493011]
[1755531247720,4.02975175,181.28,181.21,3.90493011]
[1755531247920,54.0,181.3,181.21,3.90493011]
[1755531248122,4.03014377,181.29,181.21,3.90493011]
[1755531248322,4.03014377,181.28,181.21,3.90493011]
[1755531248524,54.0,181.3,181.21,3.90493011]
[1755531248725,4.03061642,181.29,181.21,3.90493011]
[1755531248930,4.03061642,181.28,181.21,3.90493011]
[1755531249132,54.0,181.3,181.21,3.90493011]
[1755531249428,4.03042731,181.29,181.21,3.90493011]
[1755531249731,4.03042731,181.28,181.21,3.90493011]
[1755531249932,54.0,181.3,181.21,3.90493011]
[1755531250127,4.03145246,181.29,181.21,3.90493011]
[1755531250328,54.0,181.3,181.21,3.90493011]
[1755531250628,4.03199141,181.29,181.21,3.90493011]
[1755531250831,54.0,181.3,181.21,3.90493011]
[1755531251033,4.03199546,181.29,181.21,9.42053011]
[1755531251228,54.0,181.3,181.21,9.42053011]
[1755531251425,4.0323702,181.29,181.21,3.90493011]
[1755531251630,54.0,181.3,181.21,9.42043011]
[1755531251934,4.03237206,181.29,181.21,9.42043011]
[1755531252136,54.0,181.3,181.21,9.42043011]
[1755531252335,4.03279119,181.29,181.22,5.5151]
[1755531252535,54.0,181.3,181.22,5.5151]
[1755531252940,54.0,181.34,181.24,3.90493011]
[1755531253238,62.47558079,181.33,181.24,3.90493011]
[1755531253443,4.03394717,181.32,181.24,3.90493011]
[1755531253634,4.03394717,181.31,181.24,9.41933011]
[1755531253938,4.03394717,181.3,181.24,9.41933011]
[1755531254241,54.0,181.33,181.25,5.5143]
[1755531254539,54.0,181.33,181.27,3.90493011]
[1755531256140,54.0,181.33,181.27,9.41863011]
[1755531256738,54.0,181.39,181.3,3.90493011]
[1755531256932,4.03626696,181.38,181.3,3.90493011]
[1755531257237,139.0,181.4,181.3,3.90493011]
[1755531257441,4.03422608,181.39,181.33,3.90493011]
[1755531257736,4.03422608,181.38,181.33,3.90493011]
[1755531257937,139.0,181.4,181.33,3.90493011]
[1755531258139,4.0340263,181.39,181.33,3.90493011]
[1755531258331,4.0340263,181.38,181.33,3.90493011]
[1755531258528,139.0,181.4,181.33,3.90493011]
[1755531258739,6.12568197,181.46,181.33,3.90493011]
[1755531258929,8.47145864,181.45,181.33,3.90493011]
[1755531259131,4.0319401,181.44,181.33,3.90493011]
[1755531259335,4.0319401,181.43,181.34,5.5114]
[1755531259532,4.0319401,181.42,181.34,5.5114]
[1755531259736,142.88493011,181.47,181.28,3.90493011]
[1755531259737,142.88493011,181.47,181.36,3.90493011]
[1755531259939,8.46353047,181.46,181.36,3.90493011]
[1755531260135,4.02809602,181.45,181.36,3.90493011]
[1755531260437,4.02809602,181.44,181.36,3.90493011]
[1755531260633,142.88493011,181.47,181.36,3.90493011]
[1755531260840,4.02388838,181.46,181.36,3.90493011]
[1755531261041,4.02388838,181.45,181.36,3.90493011]
[1755531261238,138.98,181.47,181.36,3.90493011]
[1755531261441,4.023519,181.46,181.36,3.90493011]
[1755531261740,138.98,181.47,181.36,3.90493011]
[1755531261940,4.0203911,181.46,181.36,3.90493011]
[1755531262142,138.98,181.47,181.36,3.90493011]
[1755531262439,7.925296,181.46,181.28,3.90493011]
[1755531262640,4.02036589,181.45,181.33,3.90493011]
[1755531262841,3.90493011,181.46,181.33,3.90493011]
[1755531263041,3.90493011,181.43,181.33,3.90493011]
[1755531263236,4.0182357,181.42,181.33,3.90493011]
[1755531263835,58.0182357,181.42,181.33,3.90493011]
[1755531264036,54.0,181.42,181.33,3.90493011]
[1755531264643,54.0,181.42,181.33,9.41683011]
[1755531264942,54.0,181.42,181.33,3.90493011]
[1755531265643,54.0,181.46,181.36,3.90493011]
[1755531265946,4.05101327,181.45,181.36,3.90493011]
[1755531266142,54.0,181.46,181.36,3.90493011]
[1755531266345,4.05060025,181.45,181.36,3.90493011]
[1755531266645,54.0,181.46,181.36,3.90493011]
[1755531271444,74.43493011,181.46,181.33,3.90493011]
[1755531271649,3.90493011,181.43,181.33,3.90493011]
[1755531271847,138.86,181.42,181.33,3.90493011]
[1755531272751,74.43493011,181.46,181.33,3.90493011]
[1755531272945,74.43493011,181.46,181.22,62.0]
[1755531272946,142.89950492,181.45,181.36,3.90493011]
[1755531273146,138.86,181.45,181.36,3.90493011]
[1755531276254,54.0,181.44,181.36,3.90493011]
[1755531277847,54.0,181.44,181.36,9.41583011]
[1755531278856,54.0,181.44,181.36,3.90493011]
[1755531279058,54.0,181.49,181.42,3.90493011]
[1755531279259,3.90493011,181.53,181.42,3.90493011]
[1755531279453,142.85543293,181.52,181.42,9.41393011]
[1755531279757,138.82,181.52,181.42,3.90493011]
[1755531279960,138.82,181.52,181.42,9.41413011]
[1755531280858,138.82,181.52,181.42,3.90493011]
[1755531281259,4.03564059,181.51,181.42,9.41403011]
[1755531281459,138.82,181.52,181.42,9.41403011]
[1755531281661,4.03464707,181.51,181.42,9.41403011]
[1755531281958,138.82,181.52,181.42,9.41403011]
[1755531282158,4.03464707,181.51,181.42,9.41403011]
[1755531282360,138.82,181.52,181.43,5.5089]
[1755531282557,4.03470378,181.51,181.43,5.5089]
[1755531282758,138.82,181.52,181.43,5.5089]
[1755531283157,138.82,181.52,181.42,3.90493011]
[1755531283463,4.03808793,181.51,181.42,3.90493011]
[1755531283663,138.82,181.52,181.42,3.90493011]
[1755531283865,4.03726483,181.51,181.42,3.90493011]
[1755531284063,138.82,181.52,181.42,3.90493011]
[1755531284265,4.03725929,181.51,181.42,3.90493011]
[1755531284465,138.82,181.52,181.42,3.90493011]
[1755531284662,4.03763659,181.51,181.42,3.90493011]
[1755531284866,138.82,181.52,181.42,3.90493011]
[1755531285070,58.03763255,181.51,181.42,3.90493011]
[1755531285371,54.0,181.51,181.42,3.90493011]
[1755531285567,54.0,181.51,181.42,9.41403011]
[1755531285867,54.0,181.51,181.42,3.90493011]
[1755531286271,54.0,181.51,181.42,9.41413011]
[1755531286971,54.0,181.51,181.42,3.90493011]
[1755531288273,54.0,181.51,181.42,9.41403011]
[1755531288470,54.0,181.51,181.42,3.90493011]
[1755531288674,54.0,181.51,181.45,3.90493011]
[1755531288974,138.82,181.52,181.45,9.41293011]
[1755531290369,138.82,181.52,181.45,3.90493011]
[1755531290673,4.03737117,181.51,181.42,3.90493011]
[1755531290974,4.03737117,181.5,181.42,3.90493011]
[1755531291176,138.82,181.52,181.42,3.90493011]
[1755531291375,4.03689114,181.51,181.42,3.90493011]
[1755531291665,4.03689114,181.5,181.42,3.90493011]
[1755531291870,4.03689114,181.49,181.42,3.90493011]
[1755531292172,138.82,181.52,181.42,3.90493011]
[1755531292370,4.03738265,181.51,181.42,3.90493011]
[1755531292573,4.03738265,181.5,181.42,3.90493011]
[1755531292776,138.82,181.52,181.42,3.90493011]
[1755531292967,4.03852544,181.51,181.42,3.90493011]
[1755531293272,4.03852544,181.5,181.42,3.90493011]
[1755531293474,4.03852544,181.49,181.42,3.90493011]
[1755531293666,138.82,181.52,181.42,3.90493011]
[1755531293866,4.04014844,181.51,181.42,3.90493011]
[1755531294068,58.04014844,181.5,181.42,3.90493011]
[1755531294375,54.0,181.5,181.45,3.90493011]
[1755531294674,192.7,181.55,181.45,3.90493011]
[1755531294972,58.02017268,181.54,181.45,3.90493011]
[1755531295170,4.02017268,181.53,181.42,3.90493011]
[1755531295474,4.02017268,181.52,181.42,3.90493011]
[1755531295674,4.02017268,181.51,181.42,9.41393011]
[1755531295874,54.0,181.53,181.42,3.90493011]
[1755531296074,4.02169324,181.52,181.42,3.90493011]
[1755531296269,4.02169324,181.51,181.42,3.90493011]
[1755531296469,4.02169324,181.5,181.42,3.90493011]
[1755531296775,4.02169324,181.49,181.42,3.90493011]
[1755531296965,138.68,181.52,181.42,3.90493011]
[1755531297170,4.02467635,181.51,181.42,3.90493011]
[1755531297370,4.02467635,181.5,181.42,3.90493011]
[1755531297584,4.02467635,181.49,181.45,3.90493011]
[1755531297774,138.68,181.52,181.45,3.90493011]
[1755531297972,4.0288278,181.51,181.45,3.90493011]
[1755531298270,6.12568197,181.6,181.48,3.90493011]
[1755531298475,147.13524923,181.57,181.48,3.90493011]
[1755531298679,4.03074858,181.56,181.48,3.90493011]
[1755531298867,4.03074858,181.55,181.48,3.90493011]
[1755531299071,4.03074858,181.54,181.48,3.90493011]
[1755531299265,4.03074858,181.53,181.48,3.90493011]
[1755531299476,138.68,181.57,181.48,3.90493011]
[1755531299682,8.4722177,181.56,181.48,3.90493011]
[1755531299873,4.0324811,181.55,181.48,3.90493011]
[1755531300074,4.0324811,181.54,181.48,3.90493011]
[1755531300271,138.68,181.57,181.48,3.90493011]
[1755531300467,4.03413411,181.56,181.54,3.90493011]
[1755531300670,6.12568197,181.64,181.54,3.90493011]
[1755531300885,8.47308304,181.63,181.54,3.90493011]
[1755531301174,3.90493011,181.61,181.48,3.90493011]
[1755531301379,8.47308304,181.6,181.48,3.90493011]
[1755531301568,8.47308304,181.59,181.48,3.90493011]
[1755531301771,8.47308304,181.58,181.48,9.41213011]
[1755531301968,4.03281845,181.57,181.48,9.41213011]
[1755531302171,4.03281845,181.56,181.48,3.90493011]
[1755531302378,4.03281845,181.55,181.48,3.90493011]
[1755531302577,4.03281845,181.54,181.48,3.90493011]
[1755531302774,10.03061208,181.61,181.48,3.90493011]
[1755531302974,8.47566911,181.6,181.49,3.90493011]
[1755531303174,8.47566911,181.59,181.49,3.90493011]
[1755531303374,8.47566911,181.58,181.49,3.90493011]
[1755531303575,8.47566911,181.57,181.46,3.90493011]
[1755531303877,3.90493011,181.55,181.43,3.90493011]
[1755531304076,8.47566911,181.54,181.43,3.90493011]
[1755531304277,4.03413793,181.53,181.43,3.90493011]
[1755531304478,8.47712995,181.52,181.43,3.90493011]
[1755531304773,4.03413793,181.51,181.4,3.90493011]
[1755531304977,4.03413793,181.5,181.43,3.90493011]
[1755531305178,138.62,181.56,181.43,3.90493011]
[1755531305378,8.47781882,181.55,181.43,3.90493011]
[1755531305580,138.62,181.56,181.43,3.90493011]
[1755531305581,4.03525636,181.54,181.43,3.90493011]
[1755531305777,4.03525636,181.53,181.43,3.90493011]
[1755531305975,138.62,181.56,181.43,3.90493011]
[1755531305976,4.03525636,181.52,181.43,3.90493011]
[1755531306176,4.03525636,181.51,181.43,3.90493011]
[1755531306479,138.62,181.56,181.42,6.13672592]
[1755531306685,8.47796225,181.55,181.45,6.13672592]
[1755531306984,4.03531603,181.54,181.45,6.13672592]
[1755531307183,4.03531603,181.53,181.46,5.508]
[1755531307385,4.03531603,181.52,181.46,5.508]
[1755531307686,4.03531603,181.51,181.46,5.508]
[1755531307882,508.78,181.59,181.46,5.508]
[1755531308082,8.47675843,181.58,181.45,11.64492592]
[1755531308281,8.47675843,181.57,181.45,11.64492592]
[1755531308584,8.47675843,181.56,181.45,11.64492592]
[1755531308887,8.47789405,181.55,181.42,6.13672592]
[1755531309079,4.03472301,181.54,181.42,6.13672592]
[1755531309283,4.03472301,181.53,181.42,6.13672592]
[1755531309481,4.03472301,181.52,181.43,5.5087]
[1755531309682,4.03472301,181.51,181.43,5.5087]
[1755531309883,514.91672592,181.59,181.43,5.5087]
[1755531310086,65.11334519,181.58,181.44,5.5086]
[1755531310388,8.48131919,181.57,181.42,6.13672592]
[1755531310583,8.48131919,181.56,181.42,6.13672592]
[1755531310783,4.03687014,181.55,181.45,5.5082]
[1755531310983,4.03687014,181.54,181.45,5.5082]
[1755531311186,4.03687014,181.53,181.45,5.5082]
[1755531311385,4.03687014,181.52,181.44,5.5085]
[1755531311586,54.0,181.58,181.42,6.13672592]
[1755531311783,8.48268039,181.57,181.42,6.13672592]
[1755531311986,8.48268039,181.56,181.43,5.5088]
[1755531312182,4.03758403,181.55,181.42,6.13672592]
[1755531312491,4.03758403,181.54,181.42,6.13672592]
[1755531312686,4.03758403,181.53,181.42,6.13672592]
[1755531312988,70.53,181.58,181.35,144.73672592]
[1755531312989,4.03758403,181.52,181.4,6.13672592]
[1755531313289,4.03758403,181.51,181.4,6.13672592]
[1755531313486,70.53,181.57,181.4,6.13672592]
[1755531313683,62.48567073,181.56,181.4,6.13672592]
[1755531313990,8.48567073,181.55,181.4,6.13672592]
[1755531314192,8.48607505,181.54,181.4,6.13672592]
[1755531314388,76.66672592,181.56,181.4,6.13672592]
[1755531314389,8.48607505,181.53,181.4,6.13672592]
[1755531314687,58.03918132,181.52,181.4,6.13672592]
[1755531314888,4.03918132,181.51,181.4,6.13672592]
[1755531315287,4.03918132,181.51,181.4,11.64652592]
[1755531315886,4.03918132,181.51,181.37,11.64722592]
[1755531316095,4.03918132,181.5,181.34,376.45672592]
[1755531316289,58.03918132,181.49,181.34,376.45672592]
[1755531316491,58.03918132,181.48,181.34,376.45672592]
[1755531316788,4.03918132,181.47,181.34,376.45672592]
[1755531316986,4.03918132,181.46,181.33,5.5118]
[1755531317291,58.03918132,181.45,181.33,5.5118]
[1755531317592,54.0,181.45,181.33,5.5118]
[1755531317990,54.0,181.45,181.34,5.5114]
[1755531318291,4.04413214,181.44,181.34,5.5114]
[1755531318493,54.0,181.45,181.34,5.5114]
[1755531318693,4.04413214,181.44,181.34,5.5114]
[1755531318886,54.0,181.45,181.34,5.5114]
[1755531319082,4.04416581,181.44,181.33,5.5119]
[1755531319284,54.0,181.45,181.31,6.13672592]
[1755531319590,4.04433565,181.44,181.31,11.64902592]
[1755531319789,58.04433565,181.43,181.31,6.13672592]
[1755531319991,4.04433565,181.42,181.31,6.13672592]
[1755531320191,54.0,181.43,181.31,6.13672592]
[1755531320394,4.04355441,181.42,181.31,6.13672592]
[1755531320695,54.0,181.43,181.31,6.13672592]
[1755531321395,54.0,181.42,181.31,11.64912592]
[1755531322998,54.0,181.42,181.31,6.13672592]
[1755531323997,54.0,181.42,181.34,6.13672592]
[1755531324299,54.0,181.49,181.37,6.13672592]
[1755531324490,58.04843479,181.48,181.38,5.5103]
[1755531324693,4.04843479,181.47,181.37,6.13672592]
[1755531324888,54.0,181.48,181.37,6.13672592]
[1755531325197,4.04796096,181.47,181.37,11.64732592]
[1755531325397,54.0,181.48,181.37,11.64732592]
[1755531325598,4.04768749,181.47,181.37,11.64732592]
[1755531325793,54.0,181.48,181.37,6.13672592]
[1755531325998,4.04759206,181.47,181.37,6.13672592]
[1755531326199,4.04759206,181.46,181.37,6.13672592]
[1755531326397,54.0,181.48,181.37,6.13672592]
[1755531326599,58.04743885,181.47,181.37,6.13672592]
[1755531326898,54.0,181.47,181.37,6.13672592]
[1755531327901,54.0,181.47,181.38,5.5102]
[1755531328193,54.0,181.5,181.38,5.5102]
[1755531328397,4.04695662,181.49,181.38,5.5102]
[1755531328599,4.04695662,181.48,181.38,5.5102]
[1755531328898,4.04695662,181.47,181.38,5.5102]
[1755531329088,54.0,181.5,181.39,5.5101]
[1755531329292,54.0,181.5,181.4,6.13672592]
[1755531329293,4.04711411,181.49,181.4,6.13672592]
[1755531329492,4.04711411,181.48,181.4,6.13672592]
[1755531329691,4.04711411,181.47,181.37,6.13672592]
[1755531329890,54.0,181.5,181.37,6.13672592]
[1755531330198,4.0471815,181.49,181.37,6.13672592]
[1755531330392,4.0471815,181.48,181.37,6.13672592]
[1755531330589,4.0471815,181.47,181.37,6.13672592]
[1755531330794,54.0,181.5,181.37,11.64732592]
[1755531330999,4.04691301,181.49,181.37,11.64732592]
[1755531331200,4.04691301,181.48,181.37,11.64732592]
[1755531331404,4.04691301,181.47,181.37,11.64732592]
[1755531331601,54.0,181.5,181.37,11.64732592]
[1755531331802,4.04675656,181.49,181.37,11.64732592]
[1755531332004,4.04675656,181.48,181.37,11.64732592]
[1755531332303,4.04675656,181.47,181.37,11.64732592]
[1755531332497,54.0,181.5,181.37,11.64732592]
[1755531332703,4.04655721,181.49,181.37,11.64732592]
[1755531332903,4.04655721,181.48,181.37,11.64732592]
[1755531333103,4.04655721,181.47,181.37,11.64732592]
[1755531333303,54.0,181.5,181.37,11.64732592]
[1755531333494,4.04646121,181.49,181.38,5.5103]
[1755531333698,4.04646121,181.48,181.38,5.5103]
[1755531333901,54.0,181.5,181.37,6.13672592]
[1755531334104,4.04635778,181.49,181.4,11.64632592]
[1755531334305,4.04635778,181.48,181.4,6.13672592]
[1755531334604,54.0,181.5,181.4,6.13672592]
[1755531334804,4.04644939,181.49,181.4,6.13672592]
[1755531335006,54.0,181.5,181.42,5.509]
[1755531335205,54.0,181.5,181.43,6.13672592]
[1755531335406,54.0,181.56,181.43,6.13672592]
[1755531335602,8.51186057,181.55,181.43,6.13672592]
[1755531335802,54.0,181.56,181.43,6.13672592]
[1755531335803,4.04541293,181.54,181.43,6.13672592]
[1755531336000,4.04541293,181.53,181.43,6.13672592]
[1755531336198,4.04541293,181.52,181.43,6.13672592]
[1755531336400,54.0,181.56,181.44,5.5084]
[1755531336600,8.51166378,181.55,181.44,5.5084]
[1755531336799,4.04532486,181.54,181.44,5.5084]
[1755531337001,4.04532486,181.53,181.43,6.13672592]
[1755531337200,54.0,181.56,181.4,6.13672592]
[1755531337201,4.04532486,181.52,181.4,6.13672592]
[1755531337511,4.04532486,181.51,181.4,11.64642592]
[1755531337708,16.54,181.55,181.4,11.64642592]
[1755531337913,8.5123289,181.54,181.4,11.64642592]
[1755531338116,4.04564287,181.53,181.4,11.64642592]
[1755531338316,4.04564287,181.52,181.41,5.5095]
[1755531338612,4.04564287,181.51,181.43,6.13672592]
[1755531338813,54.0,181.56,181.43,6.13672592]
[1755531339014,8.51170487,181.55,181.43,6.13672592]
[1755531339211,4.04533446,181.54,181.45,5.5083]
[1755531339411,54.0,181.56,181.43,6.13672592]
[1755531339412,4.04533446,181.53,181.43,6.13672592]
[1755531339616,4.04493813,181.52,181.43,6.13672592]
[1755531339914,54.0,181.56,181.43,6.13672592]
[1755531340112,4.04493652,181.55,181.43,6.13672592]
[1755531340307,4.04493652,181.54,181.45,5.5082]
[1755531340510,4.04493652,181.53,181.45,5.5082]
[1755531340714,54.0,181.56,181.45,5.5082]
[1755531340917,4.04466716,181.55,181.46,5.5079]
[1755531341118,4.04466716,181.54,181.43,6.13672592]
[1755531341315,4.04466716,181.53,181.43,6.13672592]
[1755531341516,54.0,181.56,181.43,6.13672592]
[1755531341716,58.0443518,181.55,181.43,6.13672592]
[1755531341910,4.0443518,181.54,181.43,6.13672592]
[1755531342110,54.0,181.55,181.46,5.5078]
[1755531342311,54.0,181.55,181.46,6.13672592]
[1755531342815,138.52,181.59,181.49,6.13672592]
[1755531343011,4.04352878,181.58,181.46,6.13672592]
[1755531343210,4.04352878,181.57,181.46,6.13672592]
[1755531343412,4.04352878,181.56,181.42,6.13672592]
[1755531343613,4.04352878,181.55,181.42,5.509]
[1755531343918,85.18553477,181.54,181.35,370.28]
[1755531344117,8.50880885,181.53,181.38,5.5103]
[1755531344318,8.50962469,181.52,181.38,5.5103]
[1755531344520,4.04352878,181.51,181.38,5.5103]
[1755531344713,4.04352878,181.5,181.37,5.5107]
[1755531344915,4.04352878,181.49,181.36,6.13672592]
[1755531345216,4.04352878,181.48,181.36,6.13672592]
[1755531345417,82.80240789,181.54,181.36,6.13672592]
[1755531345617,27.68660676,181.53,181.36,6.13672592]
[1755531345824,8.51253031,181.52,181.36,6.13672592]
[1755531346010,4.04577215,181.51,181.39,6.13672592]
[1755531346209,4.04577215,181.5,181.39,6.13672592]
[1755531346412,54.0,181.54,181.41,5.5093]
[1755531346614,8.51205021,181.53,181.41,5.5093]
[1755531346813,4.04551752,181.52,181.4,5.5097]
[1755531347021,4.04551752,181.51,181.39,6.13672592]
[1755531347222,4.04551752,181.5,181.39,6.13672592]
[1755531347420,54.0,181.54,181.41,5.5093]
[1755531347619,8.51522115,181.53,181.41,5.5093]
[1755531347918,4.04699985,181.52,181.41,5.5093]
[1755531348118,4.04699985,181.51,181.41,5.5093]
[1755531348321,4.04699985,181.5,181.41,5.5093]
[1755531348519,54.0,181.54,181.41,5.5093]
[1755531348710,8.51722853,181.53,181.41,5.5093]
[1755531348914,4.04794664,181.52,181.4,5.5098]
[1755531349122,4.04794664,181.51,181.39,6.13672592]
[1755531349319,4.04794664,181.5,181.39,6.13672592]
[1755531349516,58.04794664,181.49,181.39,6.13672592]
[1755531349821,4.04794664,181.48,181.39,6.13672592]
[1755531350320,54.0,181.49,181.39,6.13672592]
[1755531351124,138.42,181.53,181.42,6.13672592]
[1755531351327,4.04814478,181.52,181.42,6.13672592]
[1755531351624,4.04814478,181.51,181.42,6.13672592]
[1755531351816,138.42,181.53,181.42,6.13672592]
[1755531352017,4.04814576,181.52,181.42,6.13672592]
[1755531352217,4.04814576,181.51,181.42,6.13672592]
[1755531352422,4.04814576,181.5,181.42,6.13672592]
[1755531352616,138.42,181.53,181.39,6.13672592]
[1755531352818,8.5188453,181.52,181.36,6.13672592]
[1755531353016,154.96,181.53,181.38,5.5104]
[1755531353017,8.51899526,181.51,181.38,5.5104]
[1755531353317,4.0484299,181.5,181.38,5.5104]
[1755531353515,4.0484299,181.49,181.38,5.5104]
[1755531353721,154.96,181.53,181.36,6.13672592]
[1755531353722,4.0484299,181.48,181.36,6.13672592]
[1755531353913,138.42,181.53,181.36,6.13672592]
[1755531354121,8.52011743,181.52,181.39,6.13672592]
[1755531354322,4.04927004,181.51,181.41,5.5095]
[1755531354526,4.04927004,181.5,181.39,6.13672592]
[1755531354727,138.42,181.53,181.39,6.13672592]
[1755531354728,4.04927004,181.49,181.4,5.5097]
[1755531354923,138.42,181.53,181.39,6.13672592]
[1755531355226,4.04842458,181.52,181.42,5.5091]
[1755531355426,4.04842458,181.51,181.42,5.5091]
[1755531355623,4.04842458,181.5,181.42,5.5091]
[1755531355824,54.0,181.54,181.39,6.13672592]
[1755531356126,62.51979031,181.53,181.39,6.13672592]
[1755531356322,8.51979031,181.52,181.39,6.13672592]
[1755531356526,8.52062232,181.51,181.39,6.13672592]
[1755531356722,4.04862043,181.5,181.39,6.13672592]
[1755531356917,58.04862043,181.49,181.39,6.13672592]
[1755531357120,4.04862043,181.48,181.39,6.13672592]
[1755531357524,4.04862043,181.48,181.39,11.64682592]
[1755531357817,4.04862043,181.48,181.39,6.13672592]
[1755531358328,4.04862043,181.48,181.39,11.64672592]
[1755531358622,4.04862043,181.48,181.39,6.13672592]
[1755531358830,4.04862043,181.48,181.39,11.64672592]
[1755531359330,4.04862043,181.48,181.39,6.13672592]
[1755531359932,4.04862043,181.48,181.44,5.5086]
[1755531360128,138.4,181.56,181.44,5.5086]
[1755531360434,8.52813213,181.55,181.46,5.5078]
[1755531360627,4.04933485,181.54,181.46,5.5078]
[1755531360826,4.04933485,181.53,181.46,5.5078]
[1755531361027,138.4,181.56,181.45,11.64492592]
[1755531361228,4.04856104,181.55,181.45,6.13672592]
[1755531361428,4.04856104,181.54,181.46,5.5077]
[1755531361633,138.4,181.56,181.45,6.13672592]
[1755531361831,4.04766902,181.55,181.45,6.13672592]
[1755531362027,4.04766902,181.54,181.45,11.64492592]
[1755531362232,4.04783525,181.53,181.45,11.64492592]
[1755531362427,138.4,181.56,181.45,11.64492592]
[1755531362632,138.4,181.56,181.42,6.13672592]
[1755531362633,8.52409138,181.55,181.42,6.13672592]
[1755531362838,4.04743276,181.54,181.42,6.13672592]
[1755531363028,4.04743276,181.53,181.42,6.13672592]
[1755531363224,4.04743276,181.52,181.42,6.13672592]
[1755531363431,138.4,181.56,181.42,6.13672592]
[1755531363432,4.04743276,181.51,181.42,6.13672592]
[1755531363633,138.4,181.56,181.42,6.13672592]
[1755531363838,8.52513359,181.55,181.42,6.13672592]
[1755531364134,4.04807395,181.54,181.42,6.13672592]
[1755531364337,4.04807395,181.53,181.45,5.5083]
[1755531364538,138.4,181.56,181.45,5.5083]
[1755531364726,4.04770665,181.55,181.46,6.13672592]
[1755531364931,4.04770665,181.54,181.46,6.13672592]
[1755531365129,4.04770665,181.53,181.46,11.64452592]
[1755531365330,138.4,181.56,181.46,6.13672592]
[1755531365639,8.52634117,181.55,181.46,6.13672592]
[1755531365836,138.4,181.56,181.46,6.13672592]
[1755531365837,4.04856672,181.54,181.46,6.13672592]
[1755531366136,4.04856672,181.53,181.43,6.13672592]
[1755531366326,4.04856672,181.52,181.43,6.13672592]
[1755531366536,4.04856672,181.51,181.43,6.13672592]
[1755531366730,4.04856672,181.5,181.43,6.13672592]
[1755531366939,54.0,181.55,181.43,6.13672592]
[1755531367237,138.4,181.56,181.43,6.13672592]
[1755531367238,62.5293631,181.54,181.43,6.13672592]
[1755531367434,8.5293631,181.53,181.43,6.13672592]
[1755531367640,4.050139,181.52,181.43,6.13672592]
[1755531367840,4.050139,181.51,181.43,11.64552592]
[1755531368033,4.050139,181.5,181.43,11.64552592]
[1755531368234,54.0,181.54,181.43,11.64552592]
[1755531368434,8.53365916,181.53,181.43,11.64552592]
[1755531368640,4.0521729,181.52,181.43,11.64552592]
[1755531368836,4.0521729,181.51,181.43,11.64552592]
[1755531369140,4.0521729,181.5,181.43,11.64552592]
[1755531369442,54.0,181.54,181.43,6.13672592]
[1755531369641,4.05337387,181.53,181.43,6.13672592]
[1755531369941,4.05337387,181.52,181.43,6.13672592]
[1755531370138,4.05337387,181.51,181.43,6.13672592]
[1755531370436,54.0,181.54,181.43,6.13672592]
[1755531370632,4.05356984,181.53,181.45,5.5081]
[1755531370836,4.05356984,181.52,181.45,5.5081]
[1755531371040,4.05356984,181.51,181.43,6.13672592]
[1755531371340,54.0,181.54,181.43,6.13672592]
[1755531371541,4.05355368,181.53,181.43,6.13672592]
[1755531371742,4.05355368,181.52,181.43,6.13672592]
[1755531372040,4.05355368,181.51,181.43,6.13672592]
[1755531372232,54.0,181.54,181.44,5.5086]
[1755531372542,4.05413149,181.53,181.44,5.5086]
[1755531372839,4.05413149,181.52,181.43,11.64552592]
[1755531373041,4.05413149,181.51,181.43,11.64552592]
[1755531373340,4.05413149,181.5,181.43,6.13672592]
[1755531373539,54.0,181.53,181.43,6.13672592]
[1755531373730,4.05466161,181.52,181.43,6.13672592]
[1755531373935,4.05466161,181.51,181.4,6.13672592]
[1755531374131,4.05466161,181.5,181.4,6.13672592]
[1755531374336,4.05466161,181.49,181.4,6.13672592]